[Event "57th Biel Festival ATO 2024"]
[Site "Biel"]
[Date "2024.07.23"]
[Round "7.3"]
[White "Jud, Marc"]
[Black "Andrzejewska, Anna"]
[Result "1/2-1/2"]
[ECO "E62"]
[WhiteElo "1925"]
[BlackElo "1933"]
[Annotator "RC"]
[PlyCount "57"]
[EventDate "2024.07.03"]
[EventType "swiss"]
[EventCountry "SUI"]
[SourceTitle "playchess.com"]
[Source "ChessBase"]
[SourceQuality "1"]
[TimeControl "40/5400+30:1800+30"]

1. d4 {[%emt 0:00:03]} Nf6 {[%emt 0:00:05]} 2. Nf3 {[%emt 0:00:14]} g6 {[%emt 0:00:15]} 3. c4 {[%emt 0:00:13]} Bg7 {[%emt 0:00:20]} 4. Nc3 {[%emt 0:00:13]} d6 {[%emt 0:01:02]} 5. g3 {[%emt 0:00:32]} O-O {[%emt 0:00:21]} 6. Bg2 {[%emt 0:00:11]} Nc6 {[%emt 0:00:31]} 7. e3 {[%emt 0:00:33]} e5 {[%emt 0:03:17]} 8. d5 {[%emt 0:01:17]} Nb8 {[%emt 0:02:09]} 9. e4 {[%emt 0:00:20]} a5 {[%emt 0:00:42]} 10. h3 {[%emt 0:01:19]} Na6 {[%emt 0:01:13]} 11. Be3 {[%emt 0:00:21]} b6 {[%emt 0:01:25]} 12. Nd2 {[%emt 0:01:18]} Nd7 {[%emt 0:10:07]} 13. Nb3 {[%emt 0:03:07]} Nac5 {[%emt 0:04:23]} 14. Nxc5 {[%emt 0:01:17]} Nxc5 {[%emt 0:00:30]} 15. Qd2 {[%emt 0:00:46]} f5 {[%emt 0:10:28]} 16. O-O-O {[%emt 0:03:29]} a4 {[%emt 0:10:43]} 17. Bxc5 {[%emt 0:03:11]} bxc5 {[%emt 0:00:52]} 18. h4 {[%emt 0:00:32]} f4 {[%emt 0:03:37]} 19. h5 {[%emt 0:10:01]} g5 {[%emt 0:04:46]} 20. gxf4 {[%emt 0:00:38]} exf4 {[%emt 0:01:11]} 21. f3 {[%emt 0:03:30]} Bd4 {[%emt 0:08:03]} 22. Kb1 {[%emt 0:02:26]} Ba6 {[%emt 0:04:39]} 23. Nb5 {[%emt 0:02:36]} Bxb5 {[%emt 0:05:36]} 24. cxb5 {[%emt 0:00:15]} h6 {[%emt 0:02:49]} 25. a3 {[%emt 0:01:50]} Be5 {[%emt 0:01:33]} 26. Bf1 {[%emt 0:02:56]} Qf6 {[%emt 0:00:29]} 27. Rg1 {[%emt 0:14:03]} Rfb8 {[%emt 0:01:09]} 28. Bc4 {[%emt 0:00:59]} Rb6 {[%emt 0:01:53]} 29. Rg2 {[%emt 0:00:29]} 1/2-1/2

[Event "57th Biel Festival ATO 2024"]
[Site "Biel"]
[Date "2024.07.23"]
[Round "7.4"]
[White "Wiesmann, Dominique"]
[Black "Titov, Dmitrii"]
[Result "1/2-1/2"]
[ECO "D05"]
[WhiteElo "1963"]
[BlackElo "1899"]
[Annotator "RC"]
[PlyCount "28"]
[EventDate "2024.07.03"]
[EventType "swiss"]
[EventCountry "SUI"]
[SourceTitle "playchess.com"]
[Source "ChessBase"]
[SourceQuality "1"]
[TimeControl "40/5400+30:1800+30"]

1. Nf3 {[%emt 0:00:04]} Nf6 {[%emt 0:00:10]} 2. e3 {[%emt 0:00:15]} e6 {[%emt 0:01:45]} 3. d4 {[%emt 0:00:20]} c5 {[%emt 0:01:57]} 4. Bd3 {[%emt 0:00:26]} d5 {[%emt 0:01:06]} 5. b3 {[%emt 0:00:19]} b6 {[%emt 0:03:43]} 6. O-O {[%emt 0:04:18]} Ba6 {[%emt 0:00:45]} 7. Bxa6 {[%emt 0:00:51]} Nxa6 {[%emt 0:00:03]} 8. Qe2 {[%emt 0:09:00]} Nb8 {[%emt 0:01:40]} 9. Na3 {[%emt 0:06:19]} Be7 {[%emt 0:05:38]} 10. c4 {[%emt 0:03:24]} O-O {[%emt 0:00:56]} 11. Rd1 {[%emt 0:00:30]} Qc8 {[%emt 0:07:04]} 12. Bb2 {[%emt 0:00:22]} Nbd7 {[%emt 0:05:01]} 13. Ne5 {[%emt 0:14:55]} g6 {[%emt 0:45:29]} 14. g3 {[%emt 0:32:14]} Kg7 {[%emt 0:02:35]} 1/2-1/2

[Event "57th Biel Festival ATO 2024"]
[Site "Biel"]
[Date "2024.07.23"]
[Round "7.5"]
[White "King, Alexander"]
[Black "Wenger, Arejou"]
[Result "1-0"]
[ECO "D00"]
[WhiteElo "1935"]
[BlackElo "1875"]
[Annotator "RC"]
[PlyCount "47"]
[EventDate "2024.07.03"]
[EventType "swiss"]
[EventCountry "SUI"]
[SourceTitle "playchess.com"]
[Source "ChessBase"]
[SourceQuality "1"]
[TimeControl "40/5400+30:1800+30"]

1. d4 {[%emt 0:00:03]} Nf6 {[%emt 0:00:07]} 2. Bf4 {[%emt 0:00:06]} d5 {[%emt 0:00:06]} 3. e3 {[%emt 0:00:02]} e6 {[%emt 0:00:05]} 4. Nd2 {[%emt 0:00:04]} Bd6 {[%emt 0:00:06]} 5. Bg3 {[%emt 0:00:07]} O-O {[%emt 0:00:07]} 6. Bd3 {[%emt 0:01:57]} c5 {[%emt 0:01:16]} 7. c3 {[%emt 0:00:13]} Qc7 {[%emt 0:06:54]} 8. Rc1 {[%emt 0:15:26]} e5 {[%emt 0:07:08]} 9. dxe5 {[%emt 0:06:13]} Bxe5 {[%emt 0:00:35]} 10. Ngf3 {[%emt 0:03:02]} Bxg3 {[%emt 0:14:00]} 11. hxg3 {[%emt 0:00:03]} Re8 {[%emt 0:01:32]} 12. Qc2 {[%emt 0:07:57]} g6 {[%emt 0:09:44]} 13. Qa4 {[%emt 0:12:02]} Bg4 {[%emt 0:11:40]} 14. Nh2 {[%emt 0:14:50]} Rxe3+ {[%emt 0:11:05]} 15. fxe3 {[%emt 0:12:20]} Qxg3+ {[%emt 0:00:37]} 16. Kf1 {[%emt 0:00:30]} Qxe3 {[%emt 0:01:52]} 17. Nxg4 {[%emt 0:03:23]} Qxd3+ {[%emt 0:00:39]} 18. Ke1 {[%emt 0:01:50]} Qg3+ {[%emt 0:05:21]} 19. Nf2 {[%emt 0:01:10]} Nbd7 {[%emt 0:05:12]} 20. Kf1 {[%emt 0:03:20]} Qe3 {[%emt 0:03:13]} 21. Qc2 {[%emt 0:02:11]} Re8 {[%emt 0:03:19]} 22. Nf3 {[%emt 0:02:32]} Nh5 {[%emt 0:03:32]} 23. Rxh5 {[%emt 0:02:26]} Qf4 {[%emt 0:06:36]} 24. Rxd5 {[%emt 0:02:36]} 1-0

[Event "57th Biel Festival ATO 2024"]
[Site "Biel"]
[Date "2024.07.23"]
[Round "7.6"]
[White "Oestmann, Lukas"]
[Black "Yu, Tianxiang Carlos"]
[Result "1/2-1/2"]
[ECO "B72"]
[WhiteElo "1926"]
[BlackElo "1769"]
[Annotator "RC"]
[PlyCount "120"]
[EventDate "2024.07.03"]
[EventType "swiss"]
[EventCountry "SUI"]
[SourceTitle "playchess.com"]
[Source "ChessBase"]
[SourceQuality "1"]
[TimeControl "40/5400+30:1800+30"]

1. Nf3 {[%emt 0:00:00]} c5 {[%emt 0:00:01]} 2. e4 {[%emt 0:00:11]} d6 {[%emt 0:01:33]} 3. d4 {[%emt 0:00:04]} cxd4 {[%emt 0:00:01]} 4. Nxd4 {[%emt 0:00:06]} Nf6 {[%emt 0:00:04]} 5. Nc3 {[%emt 0:00:04]} g6 {[%emt 0:00:05]} 6. Be3 {[%emt 0:00:03]} Nc6 {[%emt 0:00:16]} 7. f3 {[%emt 0:00:42]} h5 {[%emt 0:01:27]} 8. Bc4 {[%emt 0:08:22]} Bd7 {[%emt 0:00:15]} 9. O-O {[%emt 0:01:52]} Rc8 {[%emt 0:04:19]} 10. Nxc6 {[%emt 0:02:48]} bxc6 {[%emt 0:21:22]} 11. a4 {[%emt 0:08:01]} a5 {[%emt 0:05:56]} 12. Qe1 {[%emt 0:03:16]} Bg7 {[%emt 0:03:47]} 13. Rd1 {[%emt 0:04:00]} O-O {[%emt 0:03:02]} 14. Qg3 {[%emt 0:04:09]} Kh7 {[%emt 0:06:59]} 15. e5 {[%emt 0:04:35]} Nd5 {[%emt 0:23:52]} 16. Bxd5 {[%emt 0:08:41]} Bxe5 {[%emt 0:10:11]} 17. Qg5 {[%emt 0:06:45]} cxd5 {[%emt 0:01:06]} 18. Nxd5 {[%emt 0:03:05]} Bg7 {[%emt 0:07:49]} 19. Bb6 {[%emt 0:04:56]} Qe8 {[%emt 0:00:11]} 20. Rfe1 {[%emt 0:06:26]} f6 {[%emt 0:00:35]} 21. Qg3 {[%emt 0:02:31]} e5 {[%emt 0:02:34]} 22. Bxa5 {[%emt 0:03:15]} Rxc2 {[%emt 0:01:27]} 23. Bc3 {[%emt 0:00:24]} Bxa4 {[%emt 0:00:41]} 24. Ne3 {[%emt 0:00:55]} Rxc3 {[%emt 0:00:29]} 25. bxc3 {[%emt 0:00:47]} Bxd1 {[%emt 0:00:01]} 26. Rxd1 {[%emt 0:00:35]} Qc6 {[%emt 0:02:58]} 27. Nd5 {[%emt 0:00:43]} Qc5+ {[%emt 0:00:36]} 28. Kh1 {[%emt 0:01:14]} Re8 {[%emt 0:00:36]} 29. h4 {[%emt 0:01:52]} e4 {[%emt 0:00:53]} 30. Nf4 {[%emt 0:01:49]} Qf5 {[%emt 0:00:01]} 31. Rxd6 {[%emt 0:03:10]} e3 {[%emt 0:00:25]} 32. Rd1 {[%emt 0:05:05]} Bh6 {[%emt 0:01:42]} 33. Ne2 {[%emt 0:00:33]} Bg7 {[%emt 0:00:43]} 34. Qc7 {[%emt 0:04:11]} Qe5 {[%emt 0:00:03]} 35. Qxe5 {[%emt 0:01:47]} Rxe5 {[%emt 0:00:01]} 36. f4 {[%emt 0:02:16]} Rc5 {[%emt 0:01:18]} 37. Rd3 {[%emt 0:00:45]} g5 {[%emt 0:00:51]} 38. g3 {[%emt 0:01:21]} gxf4 {[%emt 0:00:12]} 39. gxf4 {[%emt 0:01:23]} Kg6 {[%emt 0:00:44]} 40. Kg2 {[%emt 0:00:24]} Kf5 {[%emt 0:00:23]} 41. Kf3 {[%emt 0:30:25]} Bh6 {[%emt 0:07:17]} 42. Nd4+ {[%emt 0:00:00]} Kg6 {[%emt 0:00:17]} 43. Kxe3 {[%emt 0:00:00]} Re5+ {[%emt 0:01:09]} 44. Kf3 {[%emt 0:00:00]} Re1 {[%emt 0:00:12]} 45. f5+ {[%emt 0:00:00]} Kf7 {[%emt 0:00:38]} 46. Kg2 {[%emt 0:00:00]} Rc1 {[%emt 0:02:09]} 47. Ne2 {[%emt 0:00:00]} Rc2 {[%emt 0:00:42]} 48. Kf3 {[%emt 0:00:00]} Bd2 {[%emt 0:02:32]} 49. c4 {[%emt 0:00:00]} Be1 {[%emt 0:01:34]} 50. Rd4 {[%emt 0:00:00]} Kg8 {[%emt 0:00:47]} 51. Ke3 {[%emt 0:00:00]} Kf7 {[%emt 0:00:49]} 52. Re4 {[%emt 0:00:00]} Ra2 {[%emt 0:00:31]} 53. Kd4 {[%emt 0:00:00]} Bf2+ {[%emt 0:00:19]} 54. Kd5 {[%emt 0:00:00]} Ra5+ {[%emt 0:02:49]} 55. Kc6 {[%emt 0:00:00]} Rxf5 {[%emt 0:04:41]} 56. Rf4 {[%emt 0:02:52]} Rxf4 {[%emt 0:01:33]} 57. Nxf4 {[%emt 0:00:05]} Bxh4 {[%emt 0:00:30]} 58. Nxh5 {[%emt 0:00:04]} Bf2 {[%emt 0:00:31]} 59. Nf4 {[%emt 0:00:44]} Bg1 {[%emt 0:00:28]} 60. Kd5 {[%emt 0:00:18]} Ke7 {[%emt 0:00:19]} 1/2-1/2

[Event "57th Biel Festival ATO 2024"]
[Site "Biel"]
[Date "2024.07.23"]
[Round "7.7"]
[White "Jordan, Christina"]
[Black "Kuenzli, Simon"]
[Result "0-1"]
[ECO "B80"]
[WhiteElo "1749"]
[BlackElo "1919"]
[Annotator "RC"]
[PlyCount "68"]
[EventDate "2024.07.03"]
[EventType "swiss"]
[EventCountry "SUI"]
[SourceTitle "playchess.com"]
[Source "ChessBase"]
[SourceQuality "1"]
[TimeControl "40/5400+30:1800+30"]

1. e4 {[%emt 0:00:06]} c5 {[%emt 0:00:06]} 2. Nf3 {[%emt 0:00:05]} d6 {[%emt 0:00:05]} 3. d4 {[%emt 0:00:05]} cxd4 {[%emt 0:00:05]} 4. Nxd4 {[%emt 0:00:05]} Nf6 {[%emt 0:00:10]} 5. Nc3 {[%emt 0:00:08]} a6 {[%emt 0:00:04]} 6. Be3 {[%emt 0:00:07]} e6 {[%emt 0:00:22]} 7. f3 {[%emt 0:01:43]} Qc7 {[%emt 0:00:59]} 8. Qd2 {[%emt 0:02:27]} Nbd7 {[%emt 0:01:01]} 9. O-O-O {[%emt 0:03:05]} b5 {[%emt 0:02:11]} 10. Kb1 {[%emt 0:02:20]} b4 {[%emt 0:07:23]} 11. Nce2 {[%emt 0:01:32]} d5 {[%emt 0:00:41]} 12. exd5 {[%emt 0:07:27]} Nxd5 {[%emt 0:00:24]} 13. Bf2 {[%emt 0:01:25]} Be7 {[%emt 0:05:13]} 14. g4 {[%emt 0:09:44]} Bb7 {[%emt 0:02:24]} 15. Bg2 {[%emt 0:00:32]} O-O {[%emt 0:02:00]} 16. h4 {[%emt 0:05:44]} N7b6 {[%emt 0:04:07]} 17. g5 {[%emt 0:07:26]} Nc4 {[%emt 0:03:55]} 18. Qc1 {[%emt 0:01:35]} Bc5 {[%emt 0:03:26]} 19. Rd3 {[%emt 0:29:16]} Qb6 {[%emt 0:08:55]} 20. Bg1 {[%emt 0:01:39]} Rac8 {[%emt 0:03:30]} 21. h5 {[%emt 0:09:18]} Ne5 {[%emt 0:01:35]} 22. Rb3 {[%emt 0:04:39]} a5 {[%emt 0:02:57]} 23. f4 {[%emt 0:01:02]} a4 {[%emt 0:05:53]} 24. Rg3 {[%emt 0:02:37]} Nc6 {[%emt 0:09:14]} 25. Nxc6 {[%emt 0:02:37]} Bxc6 {[%emt 0:00:38]} 26. Bxc5 {[%emt 0:01:01]} Qxc5 {[%emt 0:00:03]} 27. g6 {[%emt 0:01:45]} Qf2 {[%emt 0:04:06]} 28. gxh7+ {[%emt 0:01:33]} Kxh7 {[%emt 0:01:31]} 29. Qd1 {[%emt 0:02:07]} Nxf4 {[%emt 0:04:37]} 30. Bxc6 {[%emt 0:01:20]} Rxc6 {[%emt 0:04:50]} 31. Nd4 {[%emt 0:00:46]} Rd6 {[%emt 0:01:50]} 32. Qg4 {[%emt 0:00:24]} Qxd4 {[%emt 0:00:47]} 33. h6 {[%emt 0:00:42]} g6 {[%emt 0:00:42]} 34. Qg5 {[%emt 0:00:30]} Qd1+ {[%emt 0:00:30]} 0-1

[Event "57th Biel Festival ATO 2024"]
[Site "Biel"]
[Date "2024.07.23"]
[Round "7.8"]
[White "Kim, Yejun"]
[Black "Ribera Caro, Joan"]
[Result "0-1"]
[ECO "B23"]
[WhiteElo "1642"]
[BlackElo "1920"]
[Annotator "ChessBase"]
[PlyCount "69"]
[EventDate "2024.07.03"]
[EventType "swiss"]
[EventCountry "SUI"]
[SourceTitle "playchess.com"]
[Source "ChessBase"]
[SourceQuality "1"]
[TimeControl "40/5400+30:1800+30"]

1. e4 {[%emt 0:00:03]} c5 {[%emt 0:00:19]} 2. Nc3 {[%emt 0:00:13]} g6 {[%emt 0:00:19]} 3. f4 {[%emt 0:00:08]} Nc6 {[%emt 0:00:41]} 4. Nf3 {[%emt 0:00:06]} Bg7 {[%emt 0:00:22]} 5. Bb5 {[%emt 0:00:07]} Nd4 {[%emt 0:01:24]} 6. O-O {[%emt 0:00:07]} Nxb5 {[%emt 0:01:28]} 7. Nxb5 {[%emt 0:00:08]} d5 {[%emt 0:01:12]} 8. exd5 {[%emt 0:00:18]} a6 {[%emt 0:01:28]} 9. Nc3 {[%emt 0:00:20]} Nf6 {[%emt 0:00:22]} 10. Na4 {[%emt 0:06:28]} c4 {[%emt 0:09:59]} 11. Qe2 {[%emt 0:06:15]} b5 {[%emt 0:08:57]} 12. Nc3 {[%emt 0:00:47]} Nxd5 {[%emt 0:04:04]} 13. Re1 {[%emt 0:01:32]} e6 {[%emt 0:06:15]} 14. a4 {[%emt 0:03:28]} Bb7 {[%emt 0:10:25]} 15. Nxd5 {[%emt 0:00:34]} Qxd5 {[%emt 0:01:44]} 16. axb5 {[%emt 0:02:17]} axb5 {[%emt 0:08:37]} 17. d3 {[%emt 0:03:31]} cxd3 {[%emt 0:02:53]} 18. cxd3 {[%emt 0:00:07]} Qb3 {[%emt 0:06:16]} 19. Be3 {[%emt 0:14:19]} Bxf3 {[%emt 0:02:21]} 20. Qxf3 {[%emt 0:00:51]} O-O {[%emt 0:01:44]} 21. Qe2 {[%emt 0:02:10]} Rfd8 {[%emt 0:07:50]} 22. Bb6 {[%emt 0:04:59]} Rxd3 {[%emt 0:06:12]} 23. Rec1 {[%emt 0:01:41]} Bxb2 {[%emt 0:05:12]} 24. Rc8+ {[%emt 0:02:45]} Kg7 {[%emt 0:00:10]} 25. Rc2 {[%emt 0:00:09]} Bf6 {[%emt 0:00:39]} 26. g4 {[%emt 0:00:07]} Qb1+ {[%emt 0:02:16]} 27. Kg2 {[%emt 0:00:28]} Qd1 {[%emt 0:00:19]} 28. Qxd1 {[%emt 0:02:16]} Rxd1 {[%emt 0:00:06]} 29. Rc5 {[%emt 0:01:08]} Rd5 {[%emt 0:01:34]} 30. g5 {[%emt 0:01:12]} Bxa1 {[%emt 0:01:14]} 31. Rc1 {[%emt 0:01:50]} Kg8 {[%emt 0:02:36]} 32. Kf3 {[%emt 0:00:05]} Kf8 {[%emt 0:00:00]} 33. Ke4 {[%emt 0:03:25]} Ke7 {[%emt 0:00:01]} 34. h3 {[%emt 0:01:44]} Kd6 {[%emt 0:01:25]} 35. h4 {[%emt 0:14:37]} 0-1

[Event "57th Biel Festival ATO 2024"]
[Site "Biel"]
[Date "2024.07.23"]
[Round "7.9"]
[White "Schneuwly, Achim"]
[Black "Gafner, Lancelot"]
[Result "1/2-1/2"]
[ECO "A21"]
[WhiteElo "1933"]
[BlackElo "1864"]
[Annotator "RC"]
[PlyCount "80"]
[EventDate "2024.07.03"]
[EventType "swiss"]
[EventCountry "SUI"]
[SourceTitle "playchess.com"]
[Source "ChessBase"]
[SourceQuality "1"]
[TimeControl "40/5400+30:1800+30"]

1. c4 {[%emt 0:00:05]} e5 {[%emt 0:00:11]} 2. Nc3 {[%emt 0:00:07]} Nf6 {[%emt 0:00:09]} 3. e3 {[%emt 0:01:11]} Bb4 {[%emt 0:00:30]} 4. Qc2 {[%emt 0:00:30]} Nc6 {[%emt 0:00:30]} 5. Nd5 {[%emt 0:04:24]} Bc5 {[%emt 0:01:24]} 6. a3 {[%emt 0:06:31]} a5 {[%emt 0:00:30]} 7. Ne2 {[%emt 0:00:30]} O-O {[%emt 0:02:46]} 8. Nec3 {[%emt 0:00:05]} Nxd5 {[%emt 0:01:13]} 9. Nxd5 {[%emt 0:11:03]} d6 {[%emt 0:01:25]} 10. Be2 {[%emt 0:00:10]} Be6 {[%emt 0:01:40]} 11. O-O {[%emt 0:03:04]} Ne7 {[%emt 0:02:14]} 12. Nxe7+ {[%emt 0:13:02]} Qxe7 {[%emt 0:01:28]} 13. Rd1 {[%emt 0:06:46]} d5 {[%emt 0:11:01]} 14. d4 {[%emt 0:01:16]} exd4 {[%emt 0:01:26]} 15. exd4 {[%emt 0:00:08]} Ba7 {[%emt 0:06:03]} 16. Bf4 {[%emt 0:06:42]} c6 {[%emt 0:01:38]} 17. c5 {[%emt 0:03:39]} Bb8 {[%emt 0:03:33]} 18. Bxb8 {[%emt 0:00:13]} Rfxb8 {[%emt 0:01:19]} 19. b4 {[%emt 0:08:35]} axb4 {[%emt 0:05:01]} 20. axb4 {[%emt 0:00:04]} Rxa1 {[%emt 0:01:24]} 21. Rxa1 {[%emt 0:00:01]} b5 {[%emt 0:03:58]} 22. Bd3 {[%emt 0:06:39]} g6 {[%emt 0:06:53]} 23. Qe2 {[%emt 0:00:35]} Qb7 {[%emt 0:06:50]} 24. Ra5 {[%emt 0:15:22]} Re8 {[%emt 0:02:20]} 25. Kf1 {[%emt 0:04:54]} Qe7 {[%emt 0:02:24]} 26. Qe5 {[%emt 0:03:07]} f6 {[%emt 0:03:27]} 27. Qg3 {[%emt 0:00:04]} Bg4 {[%emt 0:07:56]} 28. Ra1 {[%emt 0:00:06]} Be2+ {[%emt 0:00:11]} 29. Kg1 {[%emt 0:00:05]} Bxd3 {[%emt 0:00:25]} 30. Qxd3 {[%emt 0:00:05]} Qe1+ {[%emt 0:00:45]} 31. Rxe1 {[%emt 0:00:33]} Rxe1+ {[%emt 0:00:03]} 32. Qf1 {[%emt 0:00:04]} Rxf1+ {[%emt 0:00:05]} 33. Kxf1 {[%emt 0:00:42]} Kf7 {[%emt 0:01:41]} 34. Ke2 {[%emt 0:00:05]} g5 {[%emt 0:01:09]} 35. Kf3 {[%emt 0:04:54]} Kg6 {[%emt 0:01:00]} 36. Ke3 {[%emt 0:00:53]} Kf5 {[%emt 0:01:01]} 37. h3 {[%emt 0:00:38]} Kg6 {[%emt 0:01:46]} 38. f4 {[%emt 0:00:15]} Kf5 {[%emt 0:02:40]} 39. g4+ {[%emt 0:01:03]} Kg6 {[%emt 0:00:23]} 40. Kf3 {[%emt 0:00:42]} h6 {[%emt 0:00:17]} 1/2-1/2

[Event "57th Biel Festival ATO 2024"]
[Site "Biel"]
[Date "2024.07.23"]
[Round "7.10"]
[White "Aegerter, Fabrice"]
[Black "Kuenzi, Anton"]
[Result "1-0"]
[ECO "A45"]
[WhiteElo "1917"]
[BlackElo "1862"]
[Annotator "ChessBase"]
[PlyCount "61"]
[EventDate "2024.07.03"]
[EventType "swiss"]
[EventCountry "SUI"]
[SourceTitle "playchess.com"]
[Source "ChessBase"]
[SourceQuality "1"]
[TimeControl "40/5400+30:1800+30"]

1. d4 {[%emt 0:00:18]} Nf6 {[%emt 0:00:22]} 2. Bf4 {[%emt 0:00:24]} g6 {[%emt 0:00:29]} 3. Nc3 {[%emt 0:00:12]} d5 {[%emt 0:00:12]} 4. e3 {[%emt 0:00:13]} Bg7 {[%emt 0:00:23]} 5. h4 {[%emt 0:00:59]} h5 {[%emt 0:01:24]} 6. Nf3 {[%emt 0:00:44]} O-O {[%emt 0:00:31]} 7. Be2 {[%emt 0:00:23]} c5 {[%emt 0:00:30]} 8. Nb5 {[%emt 0:12:07]} Na6 {[%emt 0:02:41]} 9. c3 {[%emt 0:01:41]} Bd7 {[%emt 0:06:53]} 10. a4 {[%emt 0:09:11]} c4 {[%emt 0:06:36]} 11. Ne5 {[%emt 0:04:16]} Bxb5 {[%emt 0:12:56]} 12. axb5 {[%emt 0:00:09]} Nc7 {[%emt 0:00:17]} 13. g4 {[%emt 0:01:34]} Nxg4 {[%emt 0:20:13]} 14. Nxg4 {[%emt 0:02:22]} hxg4 {[%emt 0:00:45]} 15. Bxg4 {[%emt 0:01:16]} Nxb5 {[%emt 0:06:19]} 16. h5 {[%emt 0:02:28]} Qb6 {[%emt 0:07:06]} 17. Qf3 {[%emt 0:14:12]} Rfd8 {[%emt 0:18:12]} 18. Qh3 {[%emt 0:15:23]} f5 {[%emt 0:02:26]} 19. hxg6 {[%emt 0:05:58]} fxg4 {[%emt 0:01:07]} 20. Qh7+ {[%emt 0:00:58]} Kf8 {[%emt 0:00:31]} 21. Be5 {[%emt 0:03:20]} Ke8 {[%emt 0:01:20]} 22. Qxg7 {[%emt 0:01:45]} Kd7 {[%emt 0:00:24]} 23. Qf7 {[%emt 0:03:35]} Qe6 {[%emt 0:01:20]} 24. Qxe6+ {[%emt 0:01:14]} Kxe6 {[%emt 0:00:01]} 25. Ke2 {[%emt 0:00:53]} Rg8 {[%emt 0:03:33]} 26. g7 {[%emt 0:01:04]} Nd6 {[%emt 0:00:23]} 27. Rh6+ {[%emt 0:09:10]} Kf7 {[%emt 0:00:51]} 28. Bxd6 {[%emt 0:05:14]} Kxg7 {[%emt 0:00:30]} 29. Bf4 {[%emt 0:00:23]} Raf8 {[%emt 0:00:01]} 30. Rh4 {[%emt 0:01:14]} a6 {[%emt 0:00:19]} 31. Bh6+ {[%emt 0:00:22]} 1-0

[Event "57th Biel Festival ATO 2024"]
[Site "Biel"]
[Date "2024.07.23"]
[Round "7.11"]
[White "Voet, Dirk"]
[Black "Haas, Anthony"]
[Result "0-1"]
[ECO "C00"]
[WhiteElo "1869"]
[BlackElo "1824"]
[Annotator "NA RC"]
[PlyCount "62"]
[EventDate "2024.07.03"]
[EventType "swiss"]
[EventCountry "SUI"]
[SourceTitle "playchess.com"]
[Source "ChessBase"]
[SourceQuality "1"]
[TimeControl "40/5400+30:1800+30"]

1. e4 {[%emt 0:00:27]} e6 {[%emt 0:00:06]} 2. b3 {[%emt 0:02:19]} d5 {[%emt 0:01:18]} 3. Bb2 {[%emt 0:00:42]} Nf6 {[%emt 0:06:38]} 4. e5 {[%emt 0:00:12]} Nfd7 {[%emt 0:00:54]} 5. f4 {[%emt 0:00:18]} c5 {[%emt 0:03:03]} 6. Nc3 {[%emt 0:06:40]} Nc6 {[%emt 0:06:50]} 7. Bb5 {[%emt 0:08:12]} Qc7 {[%emt 0:11:33]} 8. Nf3 {[%emt 0:01:02]} a6 {[%emt 0:02:20]} 9. Bxc6 {[%emt 0:04:34]} Qxc6 {[%emt 0:00:14]} 10. Qe2 {[%emt 0:00:07]} b5 {[%emt 0:02:24]} 11. O-O-O {[%emt 0:03:33]} Nb6 {[%emt 0:05:16]} 12. Rde1 {[%emt 0:02:58]} b4 {[%emt 0:06:04]} 13. Nd1 {[%emt 0:00:08]} a5 {[%emt 0:02:46]} 14. g4 {[%emt 0:00:33]} a4 {[%emt 0:05:15]} 15. Ne3 {[%emt 0:08:17]} axb3 {[%emt 0:16:33]} 16. axb3 {[%emt 0:00:02]} Ra2 {[%emt 0:03:52]} 17. c4 {[%emt 0:04:41]} dxc4 {[%emt 0:02:16]} 18. Nxc4 {[%emt 0:00:17]} Nxc4 {[%emt 0:00:59]} 19. bxc4 {[%emt 0:00:04]} Qa4 {[%emt 0:04:48]} 20. d3 {[%emt 0:01:03]} Be7 {[%emt 0:01:57]} 21. h4 {[%emt 0:13:04]} O-O {[%emt 0:05:38]} 22. Qe4 {[%emt 0:04:43]} Rd8 {[%emt 0:02:36]} 23. Rh2 {[%emt 0:04:26]} Qb3 {[%emt 0:04:42]} 24. Rd1 {[%emt 0:01:54]} Rd7 {[%emt 0:02:06]} 25. Ng5 {[%emt 0:01:55]} g6 {[%emt 0:00:33]} 26. Qc6 {[%emt 0:00:24]} Rda7 {[%emt 0:01:17]} 27. Qxc8+ {[%emt 0:00:44]} Bf8 {[%emt 0:00:02]} 28. Rc2 {[%emt 0:01:14]} Rxb2 {[%emt 0:00:35]} 29. Rxb2 {[%emt 0:01:45]} Ra1+ {[%emt 0:00:09]} 30. Kd2 {[%emt 0:00:03]} Rxd1+ {[%emt 0:00:43]} 31. Ke2 {[%emt 0:00:08]} Qxd3+ {[%emt 0:00:49]} 0-1

[Event "57th Biel Festival ATO 2024"]
[Site "Biel"]
[Date "2024.07.23"]
[Round "7.12"]
[White "Jordan, Theodor"]
[Black "Akhmediyar, Yernur"]
[Result "1/2-1/2"]
[ECO "B38"]
[WhiteElo "1894"]
[BlackElo "1751"]
[Annotator "NA"]
[PlyCount "90"]
[EventDate "2024.07.03"]
[EventType "swiss"]
[EventCountry "SUI"]
[SourceTitle "playchess.com"]
[Source "ChessBase"]
[SourceQuality "1"]
[TimeControl "40/5400+30:1800+30"]

1. e4 {[%emt 0:00:05]} c5 {[%emt 0:00:10]} 2. Nf3 {[%emt 0:00:08]} Nc6 {[%emt 0:00:20]} 3. d4 {[%emt 0:00:08]} cxd4 {[%emt 0:00:41]} 4. Nxd4 {[%emt 0:00:18]} g6 {[%emt 0:00:32]} 5. c4 {[%emt 0:00:15]} Bg7 {[%emt 0:01:19]} 6. Be3 {[%emt 0:00:12]} Qb6 {[%emt 0:02:04]} 7. Nb5 {[%emt 0:22:31]} Qa5+ {[%emt 0:02:41]} 8. Bd2 {[%emt 0:03:28]} Qd8 {[%emt 0:04:38]} 9. Bc3 {[%emt 0:03:27]} Nf6 {[%emt 0:03:22]} 10. Be2 {[%emt 0:02:59]} a6 {[%emt 0:03:47]} 11. N5a3 {[%emt 0:01:32]} O-O {[%emt 0:05:19]} 12. Nd2 {[%emt 0:04:38]} d6 {[%emt 0:03:05]} 13. O-O {[%emt 0:03:46]} Nd7 {[%emt 0:14:54]} 14. Bxg7 {[%emt 0:02:34]} Kxg7 {[%emt 0:00:09]} 15. Kh1 {[%emt 0:02:46]} Nc5 {[%emt 0:09:11]} 16. Nc2 {[%emt 0:01:02]} f6 {[%emt 0:09:54]} 17. b4 {[%emt 0:07:42]} Ne6 {[%emt 0:01:13]} 18. a3 {[%emt 0:02:47]} Bd7 {[%emt 0:10:33]} 19. Nb3 {[%emt 0:03:26]} a5 {[%emt 0:02:14]} 20. b5 {[%emt 0:02:08]} a4 {[%emt 0:03:38]} 21. Nbd4 {[%emt 0:07:40]} Ncxd4 {[%emt 0:00:29]} 22. Nxd4 {[%emt 0:00:02]} Qb6 {[%emt 0:04:44]} 23. Nxe6+ {[%emt 0:01:48]} Bxe6 {[%emt 0:00:02]} 24. f4 {[%emt 0:01:34]} Rfc8 {[%emt 0:01:56]} 25. Rc1 {[%emt 0:00:31]} Qe3 {[%emt 0:06:43]} 26. Qd3 {[%emt 0:01:42]} Qxd3 {[%emt 0:03:13]} 27. Bxd3 {[%emt 0:00:01]} Rc5 {[%emt 0:00:32]} 28. Rf2 {[%emt 0:01:44]} Rac8 {[%emt 0:01:43]} 29. Rfc2 {[%emt 0:00:03]} g5 {[%emt 0:01:35]} 30. f5 {[%emt 0:00:54]} Bf7 {[%emt 0:00:15]} 31. g4 {[%emt 0:02:47]} h5 {[%emt 0:00:45]} 32. h3 {[%emt 0:00:31]} e6 {[%emt 0:01:43]} 33. Kg2 {[%emt 0:00:14]} exf5 {[%emt 0:01:43]} 34. gxf5 {[%emt 0:02:53]} Kf8 {[%emt 0:00:30]} 35. Kf3 {[%emt 0:00:49]} Ke7 {[%emt 0:00:33]} 36. Kg3 {[%emt 0:01:20]} Kd7 {[%emt 0:00:51]} 37. Kf3 {[%emt 0:01:00]} Ke7 {[%emt 0:00:58]} 38. Kg3 {[%emt 0:00:32]} Kd7 {[%emt 0:00:37]} 39. Kf3 {[%emt 0:02:22]} Kd8 {[%emt 0:00:35]} 40. Kg3 {[%emt 0:00:29]} Ke8 {[%emt 0:00:28]} 41. Kf3 {[%emt 0:30:46]} Kd8 {[%emt 0:30:39]} 42. Kg3 {[%emt 0:00:20]} h4+ {[%emt 0:00:00]} 43. Kf3 {[%emt 0:00:00]} Ke7 {[%emt 0:00:00]} 44. Ke3 {[%emt 0:00:00]} Rg8 {[%emt 0:00:00]} 45. Be2 {[%emt 0:00:00]} Rgc8 {[%emt 0:00:00]} 1/2-1/2